[Event "Early-Titled-Tuesday-Blitz-October-10-2023"]
[Site "Chess.com"]
[Date "2023.10.10"]
[Round "6"]
[White "Mr_ruthless"]
[Black "Msb2"]
[Result "0-1"]
[WhiteElo "2468"]
[BlackElo "3055"]
[TimeControl "180+1"]
[EndTime "9:03:03 PDT"]
[Termination "Msb2 won by resignation"]

1. e4 {[%clk 0:03:00.9]} 1... e6 {[%clk 0:03:00.4]} 2. d4 {[%clk 0:03:00.7]}
2... d5 {[%clk 0:03:00.8]} 3. Nd2 {[%clk 0:03:01.5]} 3... c5 {[%clk 0:03:00.8]}
4. exd5 {[%clk 0:03:01]} 4... Qxd5 {[%clk 0:03:01.7]} 5. dxc5 {[%clk 0:03:01.2]}
5... Nf6 {[%clk 0:03:01.9]} 6. Nb3 {[%clk 0:03:01]} 6... Qxd1+ {[%clk
0:03:01.7]} 7. Kxd1 {[%clk 0:03:01.9]} 7... Bd7 {[%clk 0:03:02.3]} 8. a4 {[%clk
0:02:49.3]} 8... Nc6 {[%clk 0:02:52.3]} 9. c3 {[%clk 0:02:41.9]} 9... O-O-O
{[%clk 0:02:48.8]} 10. Bg5 {[%clk 0:02:33.7]} 10... e5 {[%clk 0:02:45.4]} 11.
Bxf6 {[%clk 0:02:28.3]} 11... gxf6 {[%clk 0:02:46.3]} 12. Ke1 {[%clk 0:02:23.5]}
12... Be6 {[%clk 0:02:44]} 13. Nd2 {[%clk 0:02:22.3]} 13... Bxc5 {[%clk
0:02:44.2]} 14. Bb5 {[%clk 0:02:19.8]} 14... Bxf2+ {[%clk 0:02:44]} 15. Kxf2
{[%clk 0:02:18]} 15... Rxd2+ {[%clk 0:02:44.7]} 16. Ke3 {[%clk 0:02:18.3]} 16...
Rxg2 {[%clk 0:02:43.3]} 17. Nf3 {[%clk 0:02:17.7]} 17... Rxb2 {[%clk 0:02:40.5]}
18. Rhg1 {[%clk 0:01:50.7]} 18... Ne7 {[%clk 0:02:40.2]} 19. Rac1 {[%clk
0:01:36.1]} 19... Nf5+ {[%clk 0:02:39.5]} 20. Ke4 {[%clk 0:01:31.9]} 20... Nd6+
{[%clk 0:02:39.2]} 21. Ke3 {[%clk 0:01:31.8]} 21... Rd8 {[%clk 0:02:34.9]} 22.
Bd3 {[%clk 0:01:30.6]} 22... Nc4+ {[%clk 0:02:27.4]} 23. Bxc4 {[%clk 0:01:30.9]}
23... Bxc4 {[%clk 0:02:28.3]} 24. Ne1 {[%clk 0:01:22.9]} 24... f5 {[%clk
0:02:26.2]} 25. Rg7 {[%clk 0:01:22.7]} 25... Rxh2 {[%clk 0:02:12.9]} 26. a5
{[%clk 0:01:14.2]} 26... Rdd2 {[%clk 0:02:02.7]} 27. a6 {[%clk 0:01:14.3]} 27...
bxa6 {[%clk 0:01:30.9]} 28. Rb1 {[%clk 0:01:03.9]} 28... h5 {[%clk 0:01:18.5]}
29. Rg8+ {[%clk 0:01:03]} 29... Kc7 {[%clk 0:01:18.5]} 30. Rb4 {[%clk
0:00:42.6]} 30... Rde2+ {[%clk 0:01:18.4]} 31. Kf3 {[%clk 0:00:42.5]} 31... Bd5+
{[%clk 0:01:19.3]} 32. Kg3 {[%clk 0:00:40.9]} 32... f4+ {[%clk 0:01:19.4]} 33.
Rxf4 {[%clk 0:00:37.9]} 33... exf4+ {[%clk 0:01:20.3]} 34. Kxf4 {[%clk
0:00:37.5]} 34... Rhf2+ {[%clk 0:01:21.1]} 35. Kg3 {[%clk 0:00:37.4]} 35... Rg2+
{[%clk 0:01:21.3]} 36. Nxg2 {[%clk 0:00:36.9]} 36... Rxg2+ {[%clk 0:01:22.2]}
0-1

[Event "Early-Titled-Tuesday-Blitz-October-10-2023"]
[Site "Chess.com"]
[Date "2023.10.10"]
[Round "6"]
[White "DonCiao"]
[Black "marvelavengers4"]
[Result "1-0"]
[WhiteElo "2072"]
[BlackElo "2251"]
[TimeControl "180+1"]
[EndTime "9:03:03 PDT"]
[Termination "DonCiao won by checkmate"]

1. c4 {[%clk 0:02:59.3]} 1... c5 {[%clk 0:02:59.3]} 2. g3 {[%clk 0:02:58.9]}
2... g6 {[%clk 0:02:58.3]} 3. Bg2 {[%clk 0:02:58.7]} 3... Bg7 {[%clk 0:02:59]}
4. Nf3 {[%clk 0:02:58.7]} 4... e6 {[%clk 0:02:59.1]} 5. Nc3 {[%clk 0:02:56.7]}
5... Ne7 {[%clk 0:02:59.1]} 6. d3 {[%clk 0:02:55.5]} 6... O-O {[%clk 0:02:57.9]}
7. Bg5 {[%clk 0:02:54.7]} 7... f6 {[%clk 0:02:57]} 8. Bd2 {[%clk 0:02:53.2]}
8... d5 {[%clk 0:02:54.7]} 9. Qc1 {[%clk 0:02:43.5]} 9... d4 {[%clk 0:02:54.6]}
10. Ne4 {[%clk 0:02:41.2]} 10... Qc7 {[%clk 0:02:53.5]} 11. h4 {[%clk
0:02:40.4]} 11... f5 {[%clk 0:02:51]} 12. Neg5 {[%clk 0:02:38.7]} 12... e5
{[%clk 0:02:51.2]} 13. h5 {[%clk 0:02:34.9]} 13... h6 {[%clk 0:02:46]} 14. Nh3
{[%clk 0:02:12.5]} 14... e4 {[%clk 0:02:44.2]} 15. dxe4 {[%clk 0:01:34.3]} 15...
fxe4 {[%clk 0:02:45.1]} 16. Nh4 {[%clk 0:01:34.3]} 16... e3 {[%clk 0:02:40.3]}
17. Bxe3 {[%clk 0:01:17.6]} 17... dxe3 {[%clk 0:02:39.9]} 18. Qxe3 {[%clk
0:01:17.5]} 18... g5 {[%clk 0:02:39.6]} 19. Ng6 {[%clk 0:01:13.8]} 19... Nxg6
{[%clk 0:02:37.3]} 20. hxg6 {[%clk 0:01:13.9]} 20... Qe5 {[%clk 0:02:25.4]} 21.
Bd5+ {[%clk 0:01:12]} 21... Kh8 {[%clk 0:02:24.5]} 22. Qxe5 {[%clk 0:00:44.1]}
22... Bxe5 {[%clk 0:02:21.8]} 23. Nxg5 {[%clk 0:00:44.6]} 23... Kg7 {[%clk
0:02:21]} 24. Nf7 {[%clk 0:00:35.9]} 24... Kxg6 {[%clk 0:02:16.3]} 25. Nxe5+
{[%clk 0:00:35.3]} 25... Kg7 {[%clk 0:02:14.8]} 26. O-O-O {[%clk 0:00:32.4]}
26... Rxf2 {[%clk 0:02:11.3]} 27. Rdf1 {[%clk 0:00:28.4]} 27... Rxf1+ {[%clk
0:01:59.4]} 28. Rxf1 {[%clk 0:00:27.2]} 28... h5 {[%clk 0:01:57]} 29. Rf7+
{[%clk 0:00:25.1]} 29... Kh6 {[%clk 0:01:56.9]} 30. Rf8 {[%clk 0:00:21]} 30...
Na6 {[%clk 0:01:56.9]} 31. Rg8 {[%clk 0:00:12.5]} 31... Nc7 {[%clk 0:01:44.8]}
32. Rg6+ {[%clk 0:00:09.9]} 32... Kh7 {[%clk 0:01:44.7]} 33. Bg8+ {[%clk
0:00:08.7]} 33... Kh8 {[%clk 0:01:43.7]} 34. Nf7# {[%clk 0:00:09.2]} 1-0

[Event "Early-Titled-Tuesday-Blitz-October-10-2023"]
[Site "Chess.com"]
[Date "2023.10.10"]
[Round "6"]
[White "draksbg"]
[Black "Grischuk"]
[Result "0-1"]
[WhiteElo "2599"]
[BlackElo "2990"]
[TimeControl "180+1"]
[EndTime "9:03:07 PDT"]
[Termination "Grischuk won by resignation"]

1. e4 {[%clk 0:02:05.3]} 1... c5 {[%clk 0:02:05.9]} 2. Nf3 {[%clk 0:01:49.2]}
2... d6 {[%clk 0:02:05.6]} 3. Bc4 {[%clk 0:01:48.8]} 3... Nf6 {[%clk 0:02:05]}
4. d3 {[%clk 0:01:49.1]} 4... Nc6 {[%clk 0:02:03.9]} 5. c3 {[%clk 0:01:49.7]}
5... g6 {[%clk 0:02:01]} 6. Bb3 {[%clk 0:01:49.9]} 6... Bg7 {[%clk 0:02:01.1]}
7. O-O {[%clk 0:01:50.8]} 7... O-O {[%clk 0:02:01.3]} 8. Re1 {[%clk 0:01:51.3]}
8... e5 {[%clk 0:01:56.6]} 9. Nbd2 {[%clk 0:01:49.9]} 9... h6 {[%clk 0:01:52.5]}
10. h3 {[%clk 0:01:48.1]} 10... Re8 {[%clk 0:01:53]} 11. Nf1 {[%clk 0:01:48]}
11... b5 {[%clk 0:01:52.7]} 12. Ng3 {[%clk 0:01:47.2]} 12... a5 {[%clk
0:01:50.2]} 13. a4 {[%clk 0:01:45.7]} 13... b4 {[%clk 0:01:50.8]} 14. Bc4 {[%clk
0:01:36.9]} 14... Rb8 {[%clk 0:01:49.8]} 15. Bd2 {[%clk 0:01:35.8]} 15... Be6
{[%clk 0:01:49.3]} 16. Bxe6 {[%clk 0:01:34.6]} 16... Rxe6 {[%clk 0:01:49.6]} 17.
Rb1 {[%clk 0:01:09.7]} 17... Qd7 {[%clk 0:01:49.2]} 18. c4 {[%clk 0:01:03.6]}
18... Rf8 {[%clk 0:01:46.3]} 19. b3 {[%clk 0:01:02.3]} 19... Kh7 {[%clk
0:01:44.9]} 20. Nh4 {[%clk 0:01:01.7]} 20... Ng8 {[%clk 0:01:42.7]} 21. Be3
{[%clk 0:00:59.4]} 21... Nce7 {[%clk 0:01:33.6]} 22. Qg4 {[%clk 0:00:57.3]}
22... f5 {[%clk 0:01:24.4]} 23. exf5 {[%clk 0:00:53.9]} 23... gxf5 {[%clk
0:01:25.3]} 24. Nhxf5 {[%clk 0:00:52.3]} 24... Nxf5 {[%clk 0:01:25.3]} 25. Nxf5
{[%clk 0:00:50.1]} 25... Rg6 {[%clk 0:01:25.5]} 0-1

[Event "Early-Titled-Tuesday-Blitz-October-10-2023"]
[Site "Chess.com"]
[Date "2023.10.10"]
[Round "6"]
[White "AvitalBor"]
[Black "Wizard_97"]
[Result "1-0"]
[WhiteElo "2822"]
[BlackElo "2578"]
[TimeControl "180+1"]
[EndTime "9:03:23 PDT"]
[Termination "AvitalBor won by checkmate"]

1. e4 {[%clk 0:03:00.9]} 1... c5 {[%clk 0:02:59.8]} 2. c3 {[%clk 0:02:59.9]}
2... Nf6 {[%clk 0:02:59.9]} 3. e5 {[%clk 0:03:00.3]} 3... Nd5 {[%clk 0:03:00.5]}
4. d4 {[%clk 0:03:01.2]} 4... cxd4 {[%clk 0:03:01.4]} 5. cxd4 {[%clk 0:03:01.8]}
5... Nc6 {[%clk 0:03:02]} 6. Nf3 {[%clk 0:03:02.2]} 6... d6 {[%clk 0:03:02.4]}
7. Bc4 {[%clk 0:03:02.9]} 7... Nb6 {[%clk 0:03:02.6]} 8. Bb5 {[%clk 0:03:03.4]}
8... dxe5 {[%clk 0:03:02.5]} 9. Nxe5 {[%clk 0:03:04.3]} 9... Bd7 {[%clk
0:03:03.2]} 10. Nxd7 {[%clk 0:03:04.3]} 10... Qxd7 {[%clk 0:03:04.1]} 11. Nc3
{[%clk 0:03:04.8]} 11... e6 {[%clk 0:03:04.5]} 12. O-O {[%clk 0:03:05.4]} 12...
Be7 {[%clk 0:03:04.2]} 13. Qg4 {[%clk 0:03:04.2]} 13... O-O {[%clk 0:03:03.7]}
14. Bxc6 {[%clk 0:03:02.2]} 14... Qxc6 {[%clk 0:02:48.9]} 15. Bh6 {[%clk
0:03:02.5]} 15... Bf6 {[%clk 0:02:49.1]} 16. Rfd1 {[%clk 0:03:02.1]} 16... Kh8
{[%clk 0:02:38.9]} 17. Ne4 {[%clk 0:03:00]} 17... Rg8 {[%clk 0:02:38.6]} 18.
Rac1 {[%clk 0:02:54.9]} 18... Qd5 {[%clk 0:02:37.6]} 19. Bg5 {[%clk 0:02:38.7]}
19... Nd7 {[%clk 0:02:22.3]} 20. Qh4 {[%clk 0:02:25.9]} 20... Qf5 {[%clk
0:01:45.9]} 21. Rc7 {[%clk 0:02:23.1]} 21... Rad8 {[%clk 0:01:44.9]} 22. h3
{[%clk 0:01:58.6]} 22... b6 {[%clk 0:01:18.8]} 23. Rxa7 {[%clk 0:01:57.4]} 23...
Qg6 {[%clk 0:01:18.5]} 24. Rc1 {[%clk 0:01:44.5]} 24... h6 {[%clk 0:01:05]} 25.
Nxf6 {[%clk 0:01:38.7]} 25... Nxf6 {[%clk 0:01:01.3]} 26. Be3 {[%clk 0:01:35.5]}
26... Nd5 {[%clk 0:01:00.6]} 27. Qg4 {[%clk 0:01:30.8]} 27... Qf6 {[%clk
0:00:44.3]} 28. Qh5 {[%clk 0:01:16.8]} 28... Ra8 {[%clk 0:00:43.1]} 29. Rxf7
{[%clk 0:01:12.3]} 29... Qd8 {[%clk 0:00:19.6]} 30. Bxh6 {[%clk 0:01:07.2]}
30... g6 {[%clk 0:00:19.8]} 31. Bg7# {[%clk 0:01:06.8]} 1-0

[Event "Early-Titled-Tuesday-Blitz-October-10-2023"]
[Site "Chess.com"]
[Date "2023.10.10"]
[Round "6"]
[White "esrosenberg"]
[Black "DefiantChair"]
[Result "0-1"]
[WhiteElo "2384"]
[BlackElo "2614"]
[TimeControl "180+1"]
[EndTime "9:03:28 PDT"]
[Termination "DefiantChair won by resignation"]

1. d4 {[%clk 0:03:00.9]} 1... Nf6 {[%clk 0:02:59.3]} 2. Nf3 {[%clk 0:03:01.5]}
2... d5 {[%clk 0:02:59]} 3. g3 {[%clk 0:03:00.5]} 3... e6 {[%clk 0:02:58.7]} 4.
Bg2 {[%clk 0:03:00.7]} 4... b5 {[%clk 0:02:57.4]} 5. a4 {[%clk 0:02:44.6]} 5...
b4 {[%clk 0:02:57.1]} 6. c4 {[%clk 0:02:45]} 6... bxc3 {[%clk 0:02:56.1]} 7.
Nxc3 {[%clk 0:02:45]} 7... c6 {[%clk 0:02:56.7]} 8. O-O {[%clk 0:02:43]} 8... a5
{[%clk 0:02:53.2]} 9. e4 {[%clk 0:02:39.4]} 9... Be7 {[%clk 0:02:51.8]} 10. e5
{[%clk 0:02:38.3]} 10... Nfd7 {[%clk 0:02:49.9]} 11. Ne1 {[%clk 0:02:36.5]}
11... Na6 {[%clk 0:02:49.3]} 12. Nd3 {[%clk 0:02:36.4]} 12... Nb4 {[%clk
0:02:48.3]} 13. f4 {[%clk 0:02:34.1]} 13... Nxd3 {[%clk 0:02:47.9]} 14. Qxd3
{[%clk 0:02:32.9]} 14... Ba6 {[%clk 0:02:48.4]} 15. Qc2 {[%clk 0:02:32.4]} 15...
Bxf1 {[%clk 0:02:48.8]} 16. Bxf1 {[%clk 0:02:33]} 16... Qb6 {[%clk 0:02:46]} 17.
Be3 {[%clk 0:02:32.4]} 17... O-O {[%clk 0:02:38.9]} 18. f5 {[%clk 0:02:32.5]}
18... Nxe5 {[%clk 0:02:29.2]} 19. fxe6 {[%clk 0:02:09.9]} 19... fxe6 {[%clk
0:02:21.8]} 20. Bh3 {[%clk 0:02:09.7]} 20... Nc4 {[%clk 0:02:11.1]} 21. Bxe6+
{[%clk 0:02:08.1]} 21... Kh8 {[%clk 0:02:10.8]} 22. Bf2 {[%clk 0:02:02.1]} 22...
Rxf2 {[%clk 0:02:07.7]} 23. Qxf2 {[%clk 0:01:59.3]} 23... Rf8 {[%clk 0:02:04.7]}
24. Qe2 {[%clk 0:01:51.7]} 24... Qxd4+ {[%clk 0:01:57.8]} 25. Kh1 {[%clk
0:01:52.1]} 25... Rf2 {[%clk 0:01:37.6]} 26. Qe1 {[%clk 0:01:51.8]} 26... Qf6
{[%clk 0:01:22.6]} 27. Bg4 {[%clk 0:01:45.8]} 27... Ne5 {[%clk 0:01:15]} 28. Be2
{[%clk 0:01:27]} 28... Bb4 {[%clk 0:01:05.4]} 29. Rc1 {[%clk 0:00:59.3]} 29...
d4 {[%clk 0:01:00]} 30. Ne4 {[%clk 0:00:39.1]} 30... Bxe1 {[%clk 0:00:49.2]} 31.
Nxf6 {[%clk 0:00:39.4]} 31... Rxe2 {[%clk 0:00:48.2]} 32. Ne8 {[%clk 0:00:35.2]}
0-1

[Event "Early-Titled-Tuesday-Blitz-October-10-2023"]
[Site "Chess.com"]
[Date "2023.10.10"]
[Round "6"]
[White "pirulillo"]
[Black "zverr1"]
[Result "0-1"]
[WhiteElo "2342"]
[BlackElo "2502"]
[TimeControl "180+1"]
[EndTime "9:03:30 PDT"]
[Termination "zverr1 won by resignation"]

1. e4 {[%clk 0:03:00]} 1... c5 {[%clk 0:02:59.6]} 2. Nf3 {[%clk 0:02:58.7]} 2...
d6 {[%clk 0:02:59.8]} 3. d4 {[%clk 0:02:58.4]} 3... cxd4 {[%clk 0:03:00.7]} 4.
Nxd4 {[%clk 0:02:57]} 4... Nf6 {[%clk 0:03:01.3]} 5. Nc3 {[%clk 0:02:56.6]} 5...
a6 {[%clk 0:03:02]} 6. Be2 {[%clk 0:02:55.9]} 6... e5 {[%clk 0:03:02.5]} 7. Nb3
{[%clk 0:02:55.6]} 7... Be7 {[%clk 0:03:02.9]} 8. Be3 {[%clk 0:02:55]} 8... O-O
{[%clk 0:03:02.1]} 9. g4 {[%clk 0:02:54.4]} 9... Be6 {[%clk 0:03:02.7]} 10. g5
{[%clk 0:02:53.9]} 10... Nfd7 {[%clk 0:03:01.7]} 11. Qd2 {[%clk 0:02:53.3]}
11... Nc6 {[%clk 0:03:00]} 12. h4 {[%clk 0:02:52.5]} 12... a5 {[%clk 0:03:00.2]}
13. h5 {[%clk 0:02:44.5]} 13... a4 {[%clk 0:02:58]} 14. Nc1 {[%clk 0:02:44]}
14... a3 {[%clk 0:02:36.6]} 15. b3 {[%clk 0:02:28.1]} 15... g6 {[%clk
0:02:35.4]} 16. Nd5 {[%clk 0:02:18]} 16... Nd4 {[%clk 0:02:19.9]} 17. c3 {[%clk
0:02:04.7]} 17... Bxd5 {[%clk 0:02:16.8]} 18. exd5 {[%clk 0:02:01]} 18... Nf5
{[%clk 0:02:17.3]} 19. Rg1 {[%clk 0:01:53.2]} 19... e4 {[%clk 0:02:11.3]} 20.
hxg6 {[%clk 0:01:34.1]} 20... fxg6 {[%clk 0:02:09.4]} 21. Bg4 {[%clk 0:01:33.7]}
21... Ne5 {[%clk 0:02:07.4]} 22. Bf4 {[%clk 0:01:24]} 22... Nxg4 {[%clk
0:01:22.9]} 23. Rxg4 {[%clk 0:01:06.8]} 23... Qd7 {[%clk 0:01:22.9]} 24. Rg1
{[%clk 0:00:48.2]} 24... Nh4 {[%clk 0:01:20.9]} 25. Rg3 {[%clk 0:00:29.5]} 25...
Nf3+ {[%clk 0:01:13.2]} 26. Rxf3 {[%clk 0:00:22.1]} 26... exf3 {[%clk
0:01:14.1]} 27. Nd3 {[%clk 0:00:20.1]} 27... Qf5 {[%clk 0:01:12.8]} 28. O-O-O
{[%clk 0:00:19.3]} 28... Qxd5 {[%clk 0:01:11.7]} 0-1

[Event "Early-Titled-Tuesday-Blitz-October-10-2023"]
[Site "Chess.com"]
[Date "2023.10.10"]
[Round "6"]
[White "Tonychess32"]
[Black "ViktoriyaTarasova"]
[Result "0-1"]
[WhiteElo "2492"]
[BlackElo "2378"]
[TimeControl "180+1"]
[EndTime "9:03:32 PDT"]
[Termination "ViktoriyaTarasova won by resignation"]

1. e4 {[%clk 0:03:00.9]} 1... e5 {[%clk 0:02:59.5]} 2. Bc4 {[%clk 0:02:59.7]}
2... Nf6 {[%clk 0:02:56.4]} 3. d3 {[%clk 0:03:00.1]} 3... c6 {[%clk 0:02:56.3]}
4. Nf3 {[%clk 0:03:00.1]} 4... d5 {[%clk 0:02:54.7]} 5. Bb3 {[%clk 0:03:00.2]}
5... a5 {[%clk 0:02:54.1]} 6. a3 {[%clk 0:02:59.5]} 6... a4 {[%clk 0:02:53.3]}
7. Ba2 {[%clk 0:02:59.3]} 7... Bd6 {[%clk 0:02:53.9]} 8. O-O {[%clk 0:02:59.1]}
8... O-O {[%clk 0:02:53.9]} 9. Nc3 {[%clk 0:02:59.2]} 9... d4 {[%clk 0:02:45.2]}
10. Ne2 {[%clk 0:02:58.8]} 10... h6 {[%clk 0:02:44]} 11. Ng3 {[%clk 0:02:59]}
11... Be6 {[%clk 0:02:43.3]} 12. h3 {[%clk 0:02:40.1]} 12... Nbd7 {[%clk
0:02:41.6]} 13. Nh2 {[%clk 0:02:34.4]} 13... b5 {[%clk 0:02:40.8]} 14. Qf3
{[%clk 0:02:05]} 14... Bxa2 {[%clk 0:02:39.5]} 15. Rxa2 {[%clk 0:02:04.7]} 15...
Kh7 {[%clk 0:02:28.4]} 16. Nf5 {[%clk 0:02:03.4]} 16... Bc7 {[%clk 0:02:24.7]}
17. Ng4 {[%clk 0:01:53.8]} 17... Nxg4 {[%clk 0:02:17.7]} 18. Qxg4 {[%clk
0:01:54]} 18... Qf6 {[%clk 0:02:15.9]} 19. Nxh6 {[%clk 0:01:28.5]} 19... Qe6
{[%clk 0:02:11.1]} 20. Qxe6 {[%clk 0:01:25.3]} 20... fxe6 {[%clk 0:02:09.4]} 21.
Ng4 {[%clk 0:01:25.4]} 21... c5 {[%clk 0:02:07]} 22. Bd2 {[%clk 0:01:23.2]}
22... Bd6 {[%clk 0:02:02.7]} 23. Raa1 {[%clk 0:01:22.4]} 23... b4 {[%clk
0:02:01]} 24. axb4 {[%clk 0:01:13.5]} 24... cxb4 {[%clk 0:02:00.5]} 25. Rfc1
{[%clk 0:00:44.5]} 25... a3 {[%clk 0:01:59.6]} 26. bxa3 {[%clk 0:00:44]} 26...
bxa3 {[%clk 0:01:59.9]} 27. c4 {[%clk 0:00:40.7]} 27... Rfb8 {[%clk 0:01:58.6]}
28. Ra2 {[%clk 0:00:37.2]} 28... Rb2 {[%clk 0:01:54.8]} 29. Rca1 {[%clk
0:00:37.3]} 29... Rab8 {[%clk 0:01:53.6]} 30. Bg5 {[%clk 0:00:14.1]} 30... Rxa2
{[%clk 0:01:40.1]} 31. Rxa2 {[%clk 0:00:14.2]} 31... Rb2 {[%clk 0:01:40.8]} 32.
Ra1 {[%clk 0:00:14.7]} 32... a2 {[%clk 0:01:40.8]} 33. Kh2 {[%clk 0:00:15.1]}
33... Bb4 {[%clk 0:01:32.3]} 34. Bc1 {[%clk 0:00:12.7]} 34... Rc2 {[%clk
0:01:31]} 35. Nxe5 {[%clk 0:00:02.2]} 35... Nxe5 {[%clk 0:01:30.2]} 36. f4
{[%clk 0:00:02.7]} 36... Nxd3 {[%clk 0:01:29.7]} 37. Ba3 {[%clk 0:00:02.6]}
37... Bxa3 {[%clk 0:01:29.4]} 38. Rd1 {[%clk 0:00:02.6]} 38... Bb2 {[%clk
0:01:24.6]} 0-1

[Event "Early-Titled-Tuesday-Blitz-October-10-2023"]
[Site "Chess.com"]
[Date "2023.10.10"]
[Round "6"]
[White "Boxerandchessplayer"]
[Black "carloseduar100"]
[Result "1-0"]
[WhiteElo "2176"]
[BlackElo "2318"]
[TimeControl "180+1"]
[EndTime "9:03:38 PDT"]
[Termination "Boxerandchessplayer won by resignation"]

1. d4 {[%clk 0:03:00.9]} 1... d5 {[%clk 0:02:59.6]} 2. Nf3 {[%clk 0:03:01.6]}
2... Nf6 {[%clk 0:02:53.7]} 3. c4 {[%clk 0:03:00.5]} 3... dxc4 {[%clk
0:02:53.1]} 4. g3 {[%clk 0:02:59]} 4... c6 {[%clk 0:02:45.7]} 5. Bg2 {[%clk
0:02:57.8]} 5... h6 {[%clk 0:02:43]} 6. O-O {[%clk 0:02:58.2]} 6... Bf5 {[%clk
0:02:41.5]} 7. Ne5 {[%clk 0:02:57.4]} 7... e6 {[%clk 0:02:30.5]} 8. Nxc4 {[%clk
0:02:54.8]} 8... Be7 {[%clk 0:02:30]} 9. Nc3 {[%clk 0:02:52.6]} 9... O-O {[%clk
0:02:30.3]} 10. e4 {[%clk 0:02:49.4]} 10... Bg6 {[%clk 0:02:29.7]} 11. Re1
{[%clk 0:02:49.8]} 11... Nbd7 {[%clk 0:02:24.9]} 12. Bf4 {[%clk 0:02:48.3]}
12... Nh5 {[%clk 0:02:19]} 13. Bd6 {[%clk 0:02:38.6]} 13... b5 {[%clk
0:02:16.6]} 14. Bxe7 {[%clk 0:02:28.5]} 14... Qxe7 {[%clk 0:02:14]} 15. Na5
{[%clk 0:01:55.7]} 15... Rfc8 {[%clk 0:02:09.5]} 16. e5 {[%clk 0:01:55.2]} 16...
f5 {[%clk 0:01:43.9]} 17. Bf3 {[%clk 0:01:47.9]} 17... Qf7 {[%clk 0:01:37.3]}
18. Bxc6 {[%clk 0:01:39.4]} 18... Rab8 {[%clk 0:01:33.2]} 19. Bf3 {[%clk
0:01:31.1]} 19... b4 {[%clk 0:01:19.5]} 20. Nb1 {[%clk 0:01:17.3]} 20... Nb6
{[%clk 0:01:19.7]} 21. Nc6 {[%clk 0:01:09.6]} 21... Rb7 {[%clk 0:01:02.1]} 22.
Nxb4 {[%clk 0:01:08.4]} 22... Rd7 {[%clk 0:01:01]} 23. Nc3 {[%clk 0:01:02.5]}
23... Rcd8 {[%clk 0:01:01.2]} 24. d5 {[%clk 0:00:58.5]} 24... exd5 {[%clk
0:01:01.2]} 25. e6 {[%clk 0:00:58.1]} 25... Qe8 {[%clk 0:00:41.5]} 26. exd7
{[%clk 0:00:56.2]} 26... Qxd7 {[%clk 0:00:41.9]} 27. Bxh5 {[%clk 0:00:55.6]}
27... Bh7 {[%clk 0:00:42.8]} 28. Nbxd5 {[%clk 0:00:52.2]} 28... g6 {[%clk
0:00:37.6]} 29. Bf3 {[%clk 0:00:50.9]} 29... Kg7 {[%clk 0:00:36]} 30. Nxb6
{[%clk 0:00:49.1]} 1-0

[Event "Early-Titled-Tuesday-Blitz-October-10-2023"]
[Site "Chess.com"]
[Date "2023.10.10"]
[Round "6"]
[White "Andrei_Skvortsov"]
[Black "kuanysh1981"]
[Result "1-0"]
[WhiteElo "2695"]
[BlackElo "2523"]
[TimeControl "180+1"]
[EndTime "9:03:45 PDT"]
[Termination "Andrei_Skvortsov won by resignation"]

1. e4 {[%clk 0:03:00.9]} 1... e5 {[%clk 0:02:58.6]} 2. d4 {[%clk 0:03:00.9]}
2... exd4 {[%clk 0:02:57.6]} 3. Qxd4 {[%clk 0:03:01.8]} 3... Nc6 {[%clk
0:02:57.3]} 4. Qd3 {[%clk 0:02:59.9]} 4... Nf6 {[%clk 0:02:54.1]} 5. Nc3 {[%clk
0:02:59.8]} 5... Bb4 {[%clk 0:02:53.7]} 6. Bd2 {[%clk 0:02:59.5]} 6... O-O
{[%clk 0:02:47.7]} 7. O-O-O {[%clk 0:02:58.9]} 7... d6 {[%clk 0:02:47.9]} 8.
Nge2 {[%clk 0:02:53.3]} 8... Re8 {[%clk 0:02:42.8]} 9. Bg5 {[%clk 0:02:52.6]}
9... h6 {[%clk 0:02:42.1]} 10. Bxf6 {[%clk 0:02:51.8]} 10... Qxf6 {[%clk
0:02:40]} 11. Nd5 {[%clk 0:02:52.3]} 11... Qd8 {[%clk 0:02:36.3]} 12. Nxb4
{[%clk 0:02:51.1]} 12... Nxb4 {[%clk 0:02:36.3]} 13. Qd2 {[%clk 0:02:51.7]}
13... a5 {[%clk 0:02:28.4]} 14. Nc3 {[%clk 0:02:50.2]} 14... Be6 {[%clk
0:02:25.2]} 15. a3 {[%clk 0:02:46.8]} 15... Qf6 {[%clk 0:02:21.4]} 16. f4 {[%clk
0:02:42.9]} 16... Bg4 {[%clk 0:02:00.1]} 17. Re1 {[%clk 0:02:40.1]} 17... Nc6
{[%clk 0:01:52.6]} 18. Nd5 {[%clk 0:02:35]} 18... Qd8 {[%clk 0:01:51.6]} 19. Bb5
{[%clk 0:02:11.1]} 19... Be6 {[%clk 0:01:47.8]} 20. Ne3 {[%clk 0:02:08.9]} 20...
Bd7 {[%clk 0:01:45.9]} 21. Bd3 {[%clk 0:02:02.3]} 21... b5 {[%clk 0:01:42.8]}
22. g4 {[%clk 0:02:00.9]} 22... a4 {[%clk 0:01:38.8]} 23. Bxb5 {[%clk
0:01:59.5]} 23... Rxe4 {[%clk 0:01:37.6]} 24. Nd5 {[%clk 0:01:57.9]} 24... Rxe1+
{[%clk 0:01:36.5]} 25. Rxe1 {[%clk 0:01:58.8]} 25... Na7 {[%clk 0:01:28]} 26.
Bd3 {[%clk 0:01:53.2]} 26... Bxg4 {[%clk 0:01:21.8]} 27. f5 {[%clk 0:01:47.1]}
27... c6 {[%clk 0:01:19]} 28. Ne3 {[%clk 0:01:43.1]} 28... Bh5 {[%clk
0:01:13.8]} 29. Rg1 {[%clk 0:01:38.4]} 29... d5 {[%clk 0:01:11.8]} 30. Qg2
{[%clk 0:01:36.8]} 30... Qf6 {[%clk 0:01:09.1]} 31. Qh3 {[%clk 0:01:35]} 31...
Rb8 {[%clk 0:00:55.8]} 32. Qxh5 {[%clk 0:01:30.6]} 32... Qxb2+ {[%clk
0:00:55.3]} 33. Kd2 {[%clk 0:01:30.8]} 33... d4 {[%clk 0:00:33.6]} 34. Nd1
{[%clk 0:01:27.8]} 34... Qxa3 {[%clk 0:00:23.4]} 35. Qxh6 {[%clk 0:01:25.5]}
35... Qb4+ {[%clk 0:00:23.3]} 36. Ke2 {[%clk 0:01:25.1]} 36... Re8+ {[%clk
0:00:22.2]} 37. Kf3 {[%clk 0:01:25.4]} 37... Qf8 {[%clk 0:00:19.1]} 38. f6
{[%clk 0:01:11]} 38... g6 {[%clk 0:00:18.8]} 39. Rxg6+ {[%clk 0:01:10]} 1-0